bitfinex/quotes_SOLUSD_20250817
["timestamp","ask_amount","ask_price","bid_price","bid_amount"]
[1755437303762,89.92519129,192.52,192.51,1e-08]
[1755437303957,90.62519129,192.52,192.51,1e-08]
[1755437305574,92.70716929,192.52,192.51,1e-08]
[1755437308289,68.00726785,192.52,192.51,1e-08]
[1755437308502,68.00176209,192.52,192.51,1e-08]
[1755437311196,68.00176209,192.52,192.44,0.68]
[1755437311197,41.10621557,192.48,192.44,0.68]
[1755437311496,15.10621557,192.46,192.44,0.68]
[1755437311701,15.10621557,192.44,192.38,26.0]
[1755437311996,5.19696497,192.42,192.38,26.0]
[1755437312179,36.28,192.41,192.38,26.0]
[1755437312381,36.28,192.41,192.39,0.68]
[1755437315471,36.28,192.41,192.4,0.68]
[1755437318883,41.47723507,192.41,192.4,0.68]
[1755437319085,41.47723507,192.41,192.38,0.68]
[1755437320474,41.47723507,192.41,192.37,0.2]
[1755437320676,23.12808689,192.4,192.37,0.2]
[1755437320997,15.10621557,192.38,192.37,0.2]
[1755437321205,22.42806692,192.38,192.37,0.2]
[1755437321677,24.42894715,192.38,192.37,0.2]
[1755437322398,29.62699268,192.38,192.37,0.2]
[1755437323578,28.92495999,192.38,192.37,0.2]
[1755437324175,28.92495999,192.38,192.37,0.88]
[1755437324482,33.26065424,192.38,192.37,0.88]
[1755437324797,28.92495999,192.38,192.37,0.88]
[1755437326195,28.92495999,192.38,192.37,0.2]
[1755437326894,33.26065424,192.38,192.37,0.2]
[1755437327084,33.25797936,192.38,192.37,0.2]
[1755437329307,28.92228511,192.38,192.37,0.2]
[1755437329507,33.25797936,192.38,192.37,0.2]
[1755437330011,29.40880322,192.38,192.37,0.2]
[1755437330303,33.25687076,192.38,192.37,0.2]
[1755437332299,28.92117651,192.38,192.37,0.2]
[1755437332477,33.25687076,192.38,192.37,0.2]
[1755437333210,28.92117651,192.38,192.37,0.2]
[1755437333514,33.25687076,192.38,192.37,0.2]
[1755437335088,12.95260966,192.38,192.37,0.2]
[1755437335290,44.91691541,192.38,192.37,0.86]
[1755437336928,50.11496094,192.38,192.37,0.86]
[1755437337384,50.11496094,192.38,192.37,0.2]
[1755437337790,44.91691541,192.38,192.37,0.2]
[1755437338397,43.61599383,192.38,192.37,0.86]
[1755437339311,43.62133776,192.38,192.37,0.86]
[1755437343487,7.32133776,192.38,192.37,6.05831574]
[1755437343889,7.32503279,192.38,192.37,6.05831574]
[1755437344193,3.46792629,192.38,192.37,6.05831574]
[1755437344406,7.32582159,192.38,192.37,6.05831574]
[1755437344986,3.46792629,192.38,192.37,6.05831574]
[1755437345186,36.3,192.39,192.37,6.05831574]
[1755437345414,36.3,192.39,192.38,0.66]
[1755437345603,43.63276767,192.39,192.38,0.66]
[1755437345808,3.47347465,192.39,192.38,0.66]
[1755437346004,36.28,192.4,192.38,0.66]
[1755437346197,36.28,192.4,192.37,5.39831574]
[1755437346400,36.28,192.4,192.39,0.66]
[1755437346626,43.617753,192.4,192.39,0.66]
[1755437347412,39.755834,192.4,192.39,0.66]
[1755437348102,43.61834551,192.4,192.39,0.66]
[1755437348289,39.755834,192.4,192.39,0.66]
[1755437348489,43.61906736,192.4,192.37,0.2]
[1755437348806,3.47710038,192.39,192.38,0.66]
[1755437350001,36.28,192.4,192.38,0.66]
[1755437353919,36.28,192.4,192.37,0.86]
[1755437354427,3.48236354,192.39,192.37,0.86]
[1755437357296,36.28,192.4,192.37,0.86]
[1755437357497,3.48454641,192.39,192.37,0.86]
[1755437357709,36.94,192.4,192.37,0.86]
[1755437358000,3.48454721,192.39,192.38,0.68]
[1755437358201,3.48454721,192.39,192.37,0.2]
[1755437358419,36.28,192.4,192.37,0.88]
[1755437358602,3.48517126,192.39,192.37,0.88]
[1755437358801,36.28,192.4,192.37,0.88]
[1755437359025,3.48517126,192.39,192.37,0.88]
[1755437359215,36.94,192.4,192.37,0.88]
[1755437359394,3.4853045,192.39,192.37,0.88]
[1755437359600,36.94,192.4,192.37,0.88]
[1755437359821,3.48583901,192.39,192.37,0.88]
[1755437360138,36.28,192.4,192.38,0.68]
[1755437360314,3.48595674,192.39,192.38,0.68]
[1755437360830,3.48595674,192.39,192.37,6.07829778]
[1755437361018,36.28,192.4,192.37,6.07829778]
[1755437361221,3.48654975,192.39,192.37,6.07829778]
[1755437361414,36.94,192.4,192.37,6.07829778]
[1755437361617,3.48709451,192.39,192.37,6.07829778]
[1755437361930,36.94,192.4,192.37,6.07829778]
[1755437362104,3.48709451,192.39,192.37,6.07829778]
[1755437362305,3.48766842,192.38,192.37,6.07829778]
[1755437364631,19.97939081,192.44,192.37,86.77829778]
[1755437364927,43.64505127,192.43,192.38,0.68]
[1755437365105,7.36505127,192.42,192.38,0.68]
[1755437365304,3.48882367,192.41,192.38,0.68]
[1755437365530,3.48882367,192.4,192.38,0.68]
[1755437365715,36.28,192.43,192.38,81.38]
[1755437365911,7.36516734,192.42,192.38,80.7]
[1755437366116,3.48887775,192.41,192.39,0.68]
[1755437366319,3.48887775,192.4,192.38,80.7]
[1755437366518,36.94,192.43,192.38,80.7]
[1755437366714,7.36443518,192.42,192.39,5.19777535]
[1755437367027,3.48853177,192.41,192.4,0.68]
[1755437368217,3.48853177,192.41,192.4,5.87750519]
[1755437376727,3.48853177,192.41,192.39,5.87777535]
[1755437376928,36.94,192.43,192.39,5.87777535]
[1755437376929,3.48853177,192.4,192.39,5.87777535]
[1755437380015,3.48853177,192.4,192.39,5.90777535]
[1755437382411,3.48853177,192.4,192.39,86.60777535]
[1755437396262,3.48853177,192.4,192.39,122.86777535]
[1755437396631,36.28,192.43,192.39,122.86777535]
[1755437396830,7.37684268,192.42,192.4,0.72]
[1755437397035,3.49424911,192.41,192.4,0.72]
[1755437398234,3.49424911,192.41,192.4,5.91750519]
[1755437399639,0.7,192.44,192.4,5.91750519]
[1755437399834,7.38031145,192.43,192.41,0.72]
[1755437400034,0.7,192.44,192.41,0.72]
[1755437400035,3.49592774,192.42,192.41,0.72]
[1755437400333,3.49592774,192.42,192.41,42.15723507]
[1755437400533,3.49592774,192.42,192.41,122.85723507]
[1755437401635,36.26,192.46,192.41,122.85723507]
[1755437401855,7.38047977,192.45,192.41,122.13723507]
[1755437402063,7.38047977,192.44,192.43,26.0]
[1755437402269,7.38061631,192.44,192.43,31.1966949]
[1755437402569,8.08061631,192.44,192.41,80.7]
[1755437402865,8.08061631,192.43,192.41,116.94]
[1755437403062,3.49582697,192.42,192.41,80.7]
[1755437403267,8.0800407,192.42,192.41,80.7]
[1755437405778,7.3800407,192.42,192.41,86.61723507]
[1755437405948,7.3800407,192.42,192.41,81.42]
[1755437406148,13.27702123,192.42,192.4,80.7]
[1755437406353,8.08076143,192.41,192.4,80.7]
[1755437409649,7.38076143,192.41,192.4,80.7]
[1755437409849,7.38076143,192.41,192.4,81.42]
[1755437410356,7.38076143,192.41,192.4,86.61750519]
[1755437410554,7.38188161,192.41,192.4,86.61750519]
[1755437411474,7.38188161,192.41,192.4,122.85750519]
[1755437414059,3.49582697,192.41,192.4,122.85750519]
[1755437418864,0.7,192.45,192.4,122.85750519]
[1755437419070,7.38507984,192.44,192.4,122.13750519]
[1755437419271,7.38507984,192.43,192.41,0.72]
[1755437419594,3.49805003,192.42,192.41,5.91723507]
[1755437420161,0.69,192.44,192.41,5.91723507]
[1755437420389,7.38517366,192.43,192.41,5.91723507]
[1755437420573,0.69,192.44,192.41,5.91723507]
[1755437420774,3.49794769,192.43,192.41,5.91723507]
[1755437421080,0.69,192.44,192.41,5.91723507]
[1755437421379,3.49761454,192.43,192.41,5.91723507]
[1755437421583,0.69,192.44,192.41,5.91723507]
[1755437421789,4.18762476,192.43,192.41,5.19723507]
[1755437422092,0.69,192.43,192.41,5.19723507]
[1755437422472,0.69,192.43,192.4,122.85745088]
[1755437422713,0.69,192.46,192.41,0.72]
[1755437422872,8.07349433,192.45,192.41,0.72]
[1755437423064,41.43570024,192.47,192.4,80.7]
[1755437423065,8.07349433,192.44,192.4,80.7]
[1755437423260,8.07349433,192.43,192.4,116.94]
[1755437423484,8.07319268,192.42,192.4,80.7]
[1755437423699,4.18736119,192.41,192.39,80.73]
[1755437423860,0.69,192.4,192.39,80.73]
[1755437424897,0.69,192.42,192.39,80.73]
[1755437425078,4.18711611,192.41,192.39,80.73]
[1755437425287,0.69,192.41,192.39,80.73]
[1755437426802,0.69,192.42,192.39,80.73]
[1755437426993,3.49719469,192.41,192.39,80.73]
[1755437427188,5.04886581,192.46,192.4,0.72]
[1755437427392,7.38307647,192.45,192.4,81.42]
[1755437427609,8.07307647,192.44,192.41,0.72]
[1755437427818,7.38307647,192.43,192.41,0.72]
[1755437427988,7.38307647,192.42,192.41,5.91723507]
[1755437428189,7.38307647,192.42,192.41,86.61723507]
[1755437428687,3.49715509,192.42,192.41,86.61723507]
[1755437428893,7.38331073,192.42,192.41,86.61723507]
[1755437429626,7.38335998,192.42,192.41,86.61723507]
[1755437429991,7.38335998,192.42,192.41,122.85723507]
[1755437432198,3.49715509,192.42,192.41,122.85723507]
[1755437444505,0.71,192.48,192.44,26.0]
[1755437444725,7.38813325,192.47,192.45,36.22]
[1755437444926,7.38856478,192.46,192.45,36.22]
[1755437446411,3.49978779,192.46,192.45,36.22]
[1755437446618,3.49978779,192.46,192.45,0.72]
[1755437448850,0.06,192.49,192.45,86.61615484]
[1755437449035,3.49722971,192.48,192.46,36.94]
[1755437449237,0.06,192.49,192.46,36.94]
[1755437449238,0.06,192.49,192.46,42.13573837]
[1755437449539,8.09172678,192.48,192.46,36.22]
[1755437449843,3.49622138,192.47,192.46,36.22]
[1755437450034,0.71,192.48,192.46,36.22]
[1755437451025,0.77,192.49,192.46,36.94]
[1755437451231,3.49447806,192.48,192.46,36.94]
[1755437451426,0.06,192.49,192.46,41.41581399]
[1755437451752,3.49455817,192.48,192.47,0.72]
[1755437452344,3.49455817,192.48,192.46,41.41581399]
[1755437452642,0.06,192.49,192.46,42.13581399]
[1755437452842,3.49411449,192.48,192.46,42.13581399]
[1755437453048,0.77,192.49,192.46,42.13581399]
[1755437453240,0.77,192.49,192.46,122.83581399]
[1755437453951,0.06,192.49,192.47,0.72]
[1755437454443,0.06,192.49,192.48,0.72]
[1755437454740,3.55350358,192.49,192.48,81.42]
[1755437457857,0.06,192.49,192.48,81.42]
[1755437460845,0.06,192.49,192.48,86.61534497]
[1755437461048,0.06,192.49,192.48,220.83487946]
[1755437461363,0.06,192.51,192.5,41.10621557]
[1755437461519,0.06,192.51,192.5,77.82569608]
[1755437461721,0.06,192.51,192.5,83.74050127]
[1755437462127,0.06,192.51,192.5,85.82096327]
[1755437463126,0.06,192.51,192.5,91.02460325]
[1755437463330,0.06,192.51,192.5,171.72460325]
[1755437463554,0.06,192.51,192.5,171.20512274]
[1755437465420,0.06,192.51,192.5,119.89890717]
[1755437465627,0.06,192.51,192.5,129.37890717]
[1755437465825,0.06,192.51,192.5,128.01844517]
[1755437466152,0.06,192.51,192.5,130.09923217]
[1755437468046,0.06,192.51,192.5,263.79923217]
[1755437470151,0.06,192.51,192.5,278.90544774]
[1755437473358,0.06,192.51,192.5,273.70180776]
[1755437474028,0.06,192.53,192.52,80.58]
[1755437474348,0.77,192.53,192.52,250.48]
[1755437475132,0.77,192.53,192.51,2.08057]
[1755437475349,0.77,192.53,192.52,36.2]
[1755437475534,0.77,192.53,192.49,80.58]
[1755437475734,0.77,192.53,192.5,36.2]
[1755437476034,0.77,192.53,192.49,26.0]
[1755437476253,0.77,192.53,192.5,36.2]
[1755437477582,0.77,192.53,192.49,80.58]
[1755437477583,5.96401518,192.53,192.46,80.58]
[1755437477730,5.25401518,192.53,192.45,80.61]
[1755437477931,5.25401518,192.53,192.45,36.23]
[1755437477932,0.69,192.52,192.45,36.23]
[1755437478231,5.88433239,192.52,192.45,68.14611761]
[1755437478442,0.69,192.51,192.45,68.14611761]
[1755437478733,0.69,192.51,192.45,41.36425357]
[1755437479062,0.69,192.51,192.45,62.23]
[1755437480055,0.69,192.51,192.45,67.42613147]
[1755437480953,5.884607,192.51,192.45,67.42613147]
[1755437481263,0.69,192.5,192.45,67.42613147]
[1755437481557,0.69,192.5,192.45,62.23]
[1755437482932,5.88497462,192.5,192.45,62.23]
[1755437483134,0.69,192.49,192.45,80.61]
[1755437483444,0.69,192.49,192.45,0.03]
[1755437484645,5.19534497,192.48,192.45,0.03]
[1755437485262,0.69,192.47,192.45,0.03]
[1755437486159,8.03677932,192.47,192.45,0.03]
[1755437486367,4.16827932,192.47,192.45,0.03]
[1755437486566,0.69,192.46,192.45,0.03]
[1755437486974,5.88588485,192.46,192.45,0.03]
[1755437494990,20.99210042,192.46,192.45,0.03]
[1755437495689,24.46957067,192.46,192.45,0.03]
[1755437498296,20.99210042,192.46,192.45,0.03]
[1755437500593,20.30210042,192.46,192.45,0.03]
[1755437501399,5.19568878,192.47,192.45,0.75]
[1755437502297,5.19568878,192.47,192.45,0.03]
[1755437504183,5.88568878,192.47,192.45,0.03]
[1755437505502,5.19568878,192.47,192.45,0.03]
[1755437505706,5.19568878,192.47,192.45,0.71]
[1755437507401,36.34,192.48,192.46,0.68]
[1755437507703,41.53538684,192.48,192.46,0.68]
[1755437508206,0.72,192.5,192.46,0.68]
[1755437508406,51.44621557,192.5,192.47,0.68]
[1755437508780,51.44621557,192.5,192.48,0.68]
[1755437509010,56.64113918,192.5,192.48,0.68]
[1755437509207,56.64113918,192.5,192.46,0.68]
[1755437509702,0.72,192.49,192.46,0.68]
[1755437511201,5.91514552,192.49,192.46,0.68]
[1755437511400,5.19514552,192.49,192.46,0.68]
[1755437512116,5.91514552,192.49,192.46,0.68]
[1755437514718,5.91514552,192.49,192.45,0.03]
[1755437514915,5.91514552,192.49,192.45,0.71]
[1755437515123,9.39728033,192.49,192.45,0.71]
[1755437515798,0.72,192.48,192.45,0.71]
[1755437516413,5.91541016,192.48,192.45,0.03]
[1755437516795,0.72,192.47,192.45,0.03]
[1755437517491,5.19541016,192.48,192.45,0.03]
[1755437517694,5.91541016,192.48,192.45,0.03]
[1755437518193,9.39754497,192.48,192.45,0.03]
[1755437518393,5.91541016,192.48,192.45,0.03]
[1755437518620,9.39754497,192.48,192.45,0.03]
[1755437518911,5.91541016,192.48,192.45,0.03]
[1755437519110,3.48213481,192.47,192.45,0.03]
[1755437519320,5.91541016,192.48,192.45,0.03]
[1755437519493,3.490364,192.47,192.45,0.03]
[1755437519694,5.91541016,192.48,192.45,0.03]
[1755437519917,3.490366,192.47,192.45,0.03]
[1755437520216,5.91541016,192.48,192.45,0.03]
[1755437520419,13.28902023,192.47,192.45,0.03]
[1755437520591,8.67361825,192.46,192.45,0.03]
[1755437520791,24.49983382,192.46,192.45,0.03]
[1755437521819,9.39361825,192.46,192.45,0.03]
[1755437522117,8.67361825,192.46,192.45,0.03]
[1755437522612,14.5895031,192.46,192.45,0.03]
[1755437523232,13.8695031,192.46,192.45,0.03]
[1755437523397,7.37337492,192.46,192.45,0.03]
[1755437525818,7.37337492,192.46,192.45,0.71]
[1755437525997,3.49261825,192.46,192.45,0.71]
[1755437528212,3.49261825,192.46,192.45,26.71]
[1755437528611,9.4085031,192.46,192.45,0.03]
[1755437528813,28.40147315,192.46,192.45,0.03]
[1755437529114,28.40109066,192.46,192.45,0.03]
[1755437530312,28.40125412,192.46,192.45,0.03]
[1755437531321,13.29503855,192.46,192.45,0.03]
[1755437536639,13.29519958,192.46,192.45,0.03]
[1755437536837,9.4085031,192.46,192.45,0.03]
[1755437537020,13.29530971,192.46,192.45,0.03]
[1755437539545,13.29500586,192.46,192.45,0.03]
[1755437540053,14.59519063,192.46,192.45,0.03]
[1755437543050,13.29500586,192.46,192.45,0.03]
[1755437543442,14.59514876,192.46,192.45,0.03]
[1755437545449,9.4085031,192.46,192.45,0.03]
[1755437545653,14.59598005,192.46,192.45,0.03]
[1755437546052,14.59606363,192.46,192.45,0.03]
[1755437546776,13.87606363,192.46,192.45,0.03]
[1755437547838,14.57606363,192.46,192.45,0.03]
[1755437548043,13.87606363,192.46,192.45,0.03]
[1755437548544,13.87626411,192.46,192.45,0.03]
[1755437549265,12.57612121,192.46,192.45,0.03]
[1755437551443,9.3885031,192.46,192.45,0.03]
[1755437551639,13.27667233,192.46,192.45,0.03]
[1755437552460,12.57667233,192.46,192.45,0.03]
[1755437554171,7.38078748,192.46,192.45,0.73]
[1755437554348,43.62078748,192.46,192.45,0.73]
[1755437554671,43.62114023,192.46,192.45,0.73]
[1755437554969,43.62114023,192.46,192.45,0.03]
[1755437555153,43.62156124,192.46,192.45,0.03]
[1755437557148,43.62156124,192.46,192.45,0.73]
[1755437559560,48.82601781,192.46,192.45,0.73]
[1755437561276,48.82601781,192.46,192.45,0.03]
[1755437562169,50.1261351,192.46,192.45,0.03]
[1755437563377,50.1261351,192.46,192.45,0.73]
[1755437563561,46.23719211,192.46,192.45,0.73]
[1755437563750,50.12863563,192.46,192.45,0.73]
[1755437564165,50.12892414,192.46,192.45,0.73]
[1755437564372,50.12892414,192.46,192.45,0.03]
[1755437564877,48.82880685,192.46,192.45,0.03]
[1755437565953,50.12892414,192.46,192.45,0.03]
[1755437566364,50.12892414,192.46,192.45,0.73]
[1755437567077,48.82880685,192.46,192.45,0.73]
[1755437567676,48.82880685,192.46,192.45,0.03]
[1755437568644,48.82880685,192.46,192.45,0.73]
[1755437568851,48.82880685,192.46,192.45,0.03]
[1755437572889,48.83100933,192.46,192.45,0.03]
[1755437573480,46.23715024,192.46,192.45,0.03]
[1755437573681,50.13193044,192.46,192.45,0.03]
[1755437579300,48.83185502,192.46,192.45,0.03]
[1755437580601,55.18844352,192.46,192.45,0.03]
[1755437580970,70.29465909,192.46,192.45,0.03]
[1755437581280,15.10621557,192.45,192.43,0.03]
[1755437581604,67.18237764,192.44,192.43,0.03]
[1755437581793,73.69492255,192.44,192.43,0.03]
[1755437582002,73.69503033,192.44,192.43,0.03]
[1755437583500,65.91652849,192.44,192.43,0.03]
[1755437584077,65.91049691,192.44,192.43,0.03]
[1755437586978,65.90736379,192.44,192.43,0.03]
[1755437587995,67.99020879,192.44,192.43,0.03]
[1755437589290,67.98775842,192.44,192.43,0.03]
[1755437590103,66.68713151,192.44,192.43,0.03]
[1755437590280,67.98665159,192.44,192.43,0.03]
[1755437590800,65.90380639,192.44,192.43,0.03]
[1755437590996,67.98567045,192.44,192.43,0.03]
[1755437593095,41.10621557,192.42,192.41,0.03]
[1755437593298,86.02470839,192.42,192.41,0.03]
[1755437593708,91.06615264,192.42,192.41,0.03]
[1755437594491,91.90167336,192.42,192.41,0.03]
[1755437598010,96.26311761,192.42,192.41,1e-08]
[1755437598584,15.10621557,192.41,192.39,0.03]
[1755437598822,44.91849282,192.4,192.39,0.03]
[1755437599188,48.14379607,192.4,192.39,0.03]
[1755437599403,68.44457369,192.4,192.39,0.03]
[1755437599698,68.44457369,192.4,192.39,1e-08]
[1755437599888,72.8023256,192.4,192.39,1e-08]
[1755437600421,68.44457369,192.4,192.39,1e-08]
[1755437600586,68.44457369,192.4,192.38,1e-08]
[1755437600587,2.54530325,192.39,192.38,1e-08]
[1755437600790,11.90085293,192.39,192.38,1e-08]
[1755437601219,15.10621557,192.37,192.36,0.03]
[1755437601511,98.12014731,192.37,192.36,1e-08]
[1755437601711,94.44538424,192.37,192.36,1e-08]
[1755437602285,96.52920524,192.37,192.36,1e-08]
[1755437602498,100.88062141,192.37,192.36,1e-08]
[1755437602702,41.10621557,192.36,192.35,1e-08]
[1755437602908,57.35848467,192.36,192.35,1e-08]
[1755437603323,62.55707065,192.36,192.35,1e-08]
[1755437604617,58.20602874,192.36,192.35,1e-08]
[1755437606320,58.20602874,192.36,192.34,0.03]
[1755437606321,72.73828365,192.36,192.34,1e-08]
[1755437606501,62.56744276,192.35,192.34,1e-08]
[1755437606691,63.24744276,192.35,192.34,1e-08]
[1755437608226,67.1451378,192.35,192.34,1e-08]
[1755437608406,67.13159053,192.35,192.34,1e-08]
[1755437608729,68.4318022,192.35,192.34,1e-08]
[1755437609903,70.5158402,192.35,192.34,1e-08]
[1755437610412,74.86688211,192.35,192.34,1e-08]
[1755437611508,74.86697363,192.35,192.34,1e-08]
[1755437612433,70.51593172,192.35,192.34,1e-08]
[1755437613624,41.10621557,192.32,192.31,0.03]
[1755437613812,88.55303747,192.32,192.31,0.03]
[1755437614011,89.23303747,192.32,192.31,0.03]
[1755437614413,89.24959151,192.32,192.31,0.03]
[1755437614843,88.56959151,192.32,192.31,0.03]
[1755437615205,93.76925873,192.32,192.31,0.03]
[1755437617215,91.22395548,192.32,192.31,0.03]
[1755437617414,89.91375205,192.32,192.31,0.03]
[1755437617614,93.76977308,192.32,192.31,0.03]
[1755437620632,93.7697671,192.32,192.31,0.03]
[1755437621339,98.10723214,192.32,192.31,0.03]
[1755437621505,100.19148814,192.32,192.31,0.03]
[1755437622031,98.10723214,192.32,192.31,0.03]
[1755437624131,98.0890354,192.32,192.31,0.03]
[1755437624348,93.74433636,192.32,192.31,0.03]
[1755437626327,95.82859236,192.32,192.31,0.03]
[1755437626626,90.67120127,192.32,192.31,0.03]
[1755437626835,95.83700495,192.32,192.31,0.03]
[1755437627048,94.53558515,192.32,192.31,0.03]
[1755437627223,95.83700495,192.32,192.31,0.03]
[1755437628155,93.75274895,192.32,192.31,0.03]
[1755437628646,15.10621557,192.31,192.29,0.03]
[1755437628824,58.70635868,192.3,192.29,0.03]
[1755437629223,58.70635868,192.3,192.29,0.72]
[1755437630554,63.90656668,192.3,192.29,0.72]
[1755437630759,66.45186993,192.3,192.29,0.72]
[1755437631542,67.75325928,192.3,192.29,0.72]
[1755437631856,67.75325928,192.3,192.29,0.03]
[1755437632027,67.75325928,192.3,192.29,0.72]
[1755437632752,67.75726795,192.3,192.29,0.72]
[1755437632941,66.4558786,192.3,192.29,0.72]
[1755437633143,67.75725599,192.3,192.29,0.72]
[1755437633340,65.21195274,192.3,192.29,0.72]
[1755437633559,63.91057535,192.3,192.29,0.72]
[1755437634331,65.21200067,192.3,192.29,0.72]
[1755437634538,63.91057535,192.3,192.29,0.72]
[1755437635229,66.4558786,192.3,192.29,0.72]
[1755437635959,66.45874225,192.3,192.29,0.72]
[1755437636532,67.76016325,192.3,192.29,0.03]
[1755437638452,66.45874225,192.3,192.29,0.03]
[1755437638838,67.76020521,192.3,192.29,0.03]
[1755437639362,68.44020521,192.3,192.29,0.03]
[1755437640500,72.78879995,192.3,192.29,0.03]
[1755437640634,72.10879995,192.3,192.29,0.03]
[1755437641160,72.78879995,192.3,192.29,0.03]
[1755437641839,72.10879995,192.3,192.29,0.03]
[1755437642168,72.10879995,192.3,192.29,0.72]
[1755437642548,69.5634967,192.3,192.29,0.03]
[1755437642745,72.10879995,192.3,192.29,0.72]
[1755437643464,65.21490196,192.3,192.29,0.03]
[1755437643677,67.76020521,192.3,192.28,0.89]
[1755437643866,13.04321972,192.29,192.28,0.89]
[1755437644178,18.22631378,192.29,192.28,0.89]
[1755437644353,18.22635591,192.29,192.28,0.89]
[1755437644554,18.22635591,192.29,192.28,0.2]
[1755437644979,18.22635591,192.29,192.28,0.89]
[1755437645571,13.85937386,192.29,192.28,0.89]
[1755437646879,16.40467711,192.29,192.28,0.2]
[1755437647556,15.10621557,192.28,192.27,0.03]
[1755437647762,71.00689859,192.28,192.27,0.03]
[1755437648464,65.17435368,192.28,192.27,0.03]
[1755437648851,62.62905043,192.28,192.27,0.03]
[1755437649164,65.17435368,192.28,192.27,0.03]
[1755437649479,65.1737334,192.28,192.27,0.03]
[1755437649852,70.3744823,192.28,192.27,0.03]
[1755437650054,76.20369187,192.28,192.27,0.03]
[1755437650575,70.3744823,192.28,192.27,0.03]
[1755437651258,76.20505986,192.28,192.27,0.03]
[1755437651454,41.10621557,192.26,192.25,0.03]
[1755437651653,90.4937334,192.26,192.25,1e-08]
[1755437651861,91.1737334,192.26,192.25,1e-08]
[1755437652367,91.17246152,192.26,192.25,1e-08]
[1755437652879,49.06932533,192.26,192.25,0.69000001]
[1755437653186,94.37715726,192.26,192.25,0.69000001]
[1755437653589,97.03214473,192.26,192.25,0.69000001]
[1755437653751,99.57744798,192.26,192.25,1e-08]
[1755437653958,100.25744798,192.26,192.25,1e-08]
[1755437654272,102.1991208,192.26,192.25,1e-08]
[1755437654776,99.57744798,192.26,192.25,1e-08]
[1755437655568,93.75337602,192.26,192.25,1e-08]
[1755437657260,94.45337602,192.26,192.25,1e-08]
[1755437658886,15.10621557,192.25,192.23,0.03]
[1755437659090,51.80998257,192.24,192.23,0.03]
[1755437659273,49.26467932,192.24,192.23,0.72]
[1755437659472,44.90056729,192.24,192.23,0.72]
[1755437659677,47.44587054,192.24,192.23,0.72]
[1755437660187,58.70494446,192.24,192.23,0.72]
[1755437660773,63.9067755,192.24,192.23,0.72]
[1755437662199,63.90114048,192.24,192.23,0.72]
[1755437662686,43.59309387,192.24,192.23,0.72]
[1755437662892,43.59347369,192.24,192.23,0.72]
[1755437663200,43.59365247,192.24,192.23,0.72]
[1755437669080,43.59365247,192.24,192.23,3.26530325]
[1755437670190,43.59365247,192.24,192.23,0.72]
[1755437671392,43.59525472,192.24,192.23,0.72]
[1755437671696,43.59545875,192.24,192.23,3.26530325]
[1755437674305,43.59545875,192.24,192.23,0.72]
[1755437674489,43.59545875,192.24,192.23,0.03]
[1755437674804,43.59545875,192.24,192.23,0.72]
[1755437677004,3.47575923,192.24,192.23,8.46740489]
[1755437677302,0.06,192.26,192.23,89.16740489]
[1755437677504,0.06,192.26,192.23,88.47740489]
[1755437677710,0.06,192.26,192.25,2.54530325]
[1755437678015,0.06,192.26,192.25,28.54530325]
[1755437678180,0.06,192.26,192.25,29.23530325]
[1755437679502,0.06,192.26,192.25,34.43686371]
[1755437679981,0.06,192.26,192.25,31.89156046]
[1755437680182,0.06,192.26,192.25,34.43686371]
[1755437684008,0.06,192.26,192.25,115.13686371]
[1755437689612,0.06,192.26,192.25,34.43686371]